[Event "Titled Tuesday Blitz August 08 Early 2023"]
[White "Balint, Vilmos"]
[Black "Timmermans, Mark"]
[WhiteFideId "718050"]
[BlackFideId "1026399"]
[WhiteElo "2405"]
[BlackElo "2731"]
[Result "0-1"]
[Round "1"]
[TimeControl "180+1"]
[Date "2023.08.08"]
[WhiteClock "0:02:12"]
[BlackClock "0:01:10"]
[Board "115"]

1. d4 {[%clk 0:03:00]}  Nf6 {[%clk 0:02:59]} 2. c4 {[%clk 0:03:00]}  e6 {[%clk 0:02:59]} 3. Nc3 {[%clk 0:03:01]}  Bb4 {[%clk 0:02:58]} 4. e3 {[%clk 0:03:00]}  Ne4 {[%clk 0:02:58]} 5. Bd2 {[%clk 0:03:00]}  Nxd2 {[%clk 0:02:58]} 6. Qxd2 {[%clk 0:03:01]}  f5 {[%clk 0:02:59]} 7. a3 {[%clk 0:03:01]}  Bxc3 {[%clk 0:02:59]} 8. Qxc3 {[%clk 0:03:00]}  O-O {[%clk 0:03:00]} 9. Nf3 {[%clk 0:03:00]}  b6 {[%clk 0:03:01]} 10. Be2 {[%clk 0:03:00]}  Bb7 {[%clk 0:03:01]} 11. O-O {[%clk 0:03:00]}  d6 {[%clk 0:03:01]} 12. Rfd1 {[%clk 0:02:57]}  Nd7 {[%clk 0:03:02]} 13. Rac1 {[%clk 0:02:56]}  Nf6 {[%clk 0:02:47]} 14. c5 {[%clk 0:02:56]}  Ne4 {[%clk 0:02:47]} 15. Qb3 {[%clk 0:02:55]}  Bd5 {[%clk 0:02:43]} 16. Bc4 {[%clk 0:02:55]}  dxc5 {[%clk 0:02:42]} 17. Bxd5 {[%clk 0:02:52]}  exd5 {[%clk 0:02:37]} 18. dxc5 {[%clk 0:02:49]}  Nxc5 {[%clk 0:02:38]} 19. Qxd5+ {[%clk 0:02:49]}  Qxd5 {[%clk 0:02:37]} 20. Rxd5 {[%clk 0:02:50]}  a5 {[%clk 0:02:25]} 21. g3 {[%clk 0:02:39]}  a4 {[%clk 0:02:23]} 22. Nd4 {[%clk 0:02:36]}  g6 {[%clk 0:02:23]} 23. Nb5 {[%clk 0:02:35]}  Rf7 {[%clk 0:02:19]} 24. Rcd1 {[%clk 0:02:30]}  Re8 {[%clk 0:02:00]} 25. Rd8 {[%clk 0:02:29]}  Kf8 {[%clk 0:02:01]} 26. Nc3 {[%clk 0:02:26]}  Ke7 {[%clk 0:01:56]} 27. Rxe8+ {[%clk 0:02:25]}  Kxe8 {[%clk 0:01:57]} 28. Kg2 {[%clk 0:02:25]}  Rd7 {[%clk 0:01:49]} 29. Rxd7 {[%clk 0:02:18]}  Kxd7 {[%clk 0:01:49]} 30. Kf3 {[%clk 0:02:17]}  c6 {[%clk 0:01:46]} 31. Kf4 {[%clk 0:02:17]}  Nd3+ {[%clk 0:01:37]} 32. Kg5 {[%clk 0:02:17]}  Nxb2 {[%clk 0:01:36]} 33. Kh6 {[%clk 0:02:18]}  Ke6 {[%clk 0:01:36]} 34. Kxh7 {[%clk 0:02:18]}  Kf7 {[%clk 0:01:33]} 35. e4 {[%clk 0:02:15]}  fxe4 {[%clk 0:01:31]} 36. Nxe4 {[%clk 0:02:16]}  b5 {[%clk 0:01:32]} 37. g4 {[%clk 0:02:11]}  Nc4 {[%clk 0:01:26]} 38. g5 {[%clk 0:02:12]}  Nxa3 {[%clk 0:01:22]} 39. h4 {[%clk 0:02:12]}  Nc4 {[%clk 0:01:20]} 40. h5 {[%clk 0:02:12]}  Ne5 {[%clk 0:01:20]} 41. Nd6+ {[%clk 0:02:11]}  Ke6 {[%clk 0:01:19]} 42. hxg6 {[%clk 0:02:11]}  Nxg6 {[%clk 0:01:19]} 43. Kxg6 {[%clk 0:02:10]}  a3 {[%clk 0:01:18]} 44. Ne4 {[%clk 0:02:08]}  a2 {[%clk 0:01:16]} 45. Nc5+ {[%clk 0:02:08]}  Kd5 {[%clk 0:01:17]} 46. Nb3 {[%clk 0:02:09]}  Kc4 {[%clk 0:01:17]} 47. Kh7 {[%clk 0:02:08]}  Kxb3 {[%clk 0:01:17]} 48. g6 {[%clk 0:02:09]}  a1=Q {[%clk 0:01:17]} 49. g7 {[%clk 0:02:10]}  Qh1+ {[%clk 0:01:15]} 50. Kg6 {[%clk 0:02:09]}  Qg2+ {[%clk 0:01:15]} 51. Kh7 {[%clk 0:02:09]}  Qh3+ {[%clk 0:01:13]} 52. Kg6 {[%clk 0:02:09]}  Qg4+ {[%clk 0:01:14]} 53. Kh6 {[%clk 0:02:09]}  c5 {[%clk 0:01:13]} 54. f3 {[%clk 0:02:10]}  Qh4+ {[%clk 0:01:07]} 55. Kg6 {[%clk 0:02:10]}  c4 {[%clk 0:01:07]} 56. g8=Q {[%clk 0:02:10]}  Qg3+ {[%clk 0:01:07]} 57. Kh7 {[%clk 0:02:10]}  Qxg8+ {[%clk 0:01:08]} 58. Kxg8 {[%clk 0:02:10]}  c3 {[%clk 0:01:09]} 59. f4 {[%clk 0:02:11]}  c2 {[%clk 0:01:09]} 60. f5 {[%clk 0:02:12]}  c1=Q {[%clk 0:01:09]} 61. f6 {[%clk 0:02:13]}  Qc4+ {[%clk 0:01:10]} 62. f7 {[%clk 0:02:12]}  Qxf7+ {[%clk 0:01:10]} 0-1


[Site "https://www.chess.com"]

[Event "Titled Tuesday Blitz August 08 Early 2023"]
[White "Davidson, Kevin"]
[Black "Materia, Marco"]
[WhiteFideId "2056810"]
[BlackFideId "45150451"]
[WhiteElo "2402"]
[BlackElo "2730"]
[Result "0-1"]
[Round "1"]
[TimeControl "180+1"]
[Date "2023.08.08"]
[WhiteClock "0:00:02"]
[BlackClock "0:01:44"]
[Board "117"]

1. e4 {[%clk 0:03:00]}  c5 {[%clk 0:02:58]} 2. Nf3 {[%clk 0:03:00]}  e6 {[%clk 0:02:59]} 3. d4 {[%clk 0:03:00]}  cxd4 {[%clk 0:02:59]} 4. Nxd4 {[%clk 0:03:01]}  Nc6 {[%clk 0:02:59]} 5. Nc3 {[%clk 0:03:01]}  Qc7 {[%clk 0:02:59]} 6. g3 {[%clk 0:03:01]}  a6 {[%clk 0:02:58]} 7. Bg2 {[%clk 0:03:01]}  Nf6 {[%clk 0:02:59]} 8. O-O {[%clk 0:03:01]}  Nxd4 {[%clk 0:02:59]} 9. Qxd4 {[%clk 0:03:02]}  Bc5 {[%clk 0:02:59]} 10. Bf4 {[%clk 0:03:02]}  d6 {[%clk 0:02:58]} 11. Qd2 {[%clk 0:03:02]}  h6 {[%clk 0:02:56]} 12. Rad1 {[%clk 0:03:01]}  e5 {[%clk 0:02:56]} 13. Be3 {[%clk 0:02:59]}  O-O {[%clk 0:02:52]} 14. Bxc5 {[%clk 0:02:30]}  dxc5 {[%clk 0:02:52]} 15. f4 {[%clk 0:02:30]}  Bg4 {[%clk 0:02:50]} 16. Qd6 {[%clk 0:02:26]}  Rac8 {[%clk 0:02:37]} 17. Qxc7 {[%clk 0:02:23]}  Rxc7 {[%clk 0:02:37]} 18. Rd6 {[%clk 0:02:17]}  Re8 {[%clk 0:02:30]} 19. f5 {[%clk 0:02:05]}  b5 {[%clk 0:02:16]} 20. h3 {[%clk 0:01:18]}  b4 {[%clk 0:02:16]} 21. Nd5 {[%clk 0:01:10]}  Nxd5 {[%clk 0:02:15]} 22. exd5 {[%clk 0:01:05]}  Be2 {[%clk 0:02:15]} 23. Re1 {[%clk 0:01:02]}  Bb5 {[%clk 0:02:15]} 24. f6 {[%clk 0:00:47]}  Rd7 {[%clk 0:02:09]} 25. Rb6 {[%clk 0:00:36]}  gxf6 {[%clk 0:01:57]} 26. Rxf6 {[%clk 0:00:37]}  Kg7 {[%clk 0:01:58]} 27. Rb6 {[%clk 0:00:36]}  Bc4 {[%clk 0:01:50]} 28. d6 {[%clk 0:00:25]}  Re6 {[%clk 0:01:50]} 29. b3 {[%clk 0:00:21]}  Bb5 {[%clk 0:01:49]} 30. c4 {[%clk 0:00:13]}  bxc3 {[%clk 0:01:48]} 31. Rc1 {[%clk 0:00:14]}  e4 {[%clk 0:01:43]} 32. Rxc3 {[%clk 0:00:08]}  e3 {[%clk 0:01:44]} 33. Rc1 {[%clk 0:00:08]}  Rdxd6 {[%clk 0:01:43]} 34. Rxd6 {[%clk 0:00:07]}  Rxd6 {[%clk 0:01:44]} 35. Rxc5 {[%clk 0:00:06]}  Rd1+ {[%clk 0:01:43]} 36. Kh2 {[%clk 0:00:02]}  e2 {[%clk 0:01:44]} 0-1


[Site "https://www.chess.com"]

[Event "Titled Tuesday Blitz August 08 Early 2023"]
[White "Jumanov, Elbek"]
[Black "Preotu, Razvan"]
[WhiteFideId "14202905"]
[BlackFideId "2613280"]
[WhiteElo "2399"]
[BlackElo "2723"]
[Result "1-0"]
[Round "1"]
[TimeControl "180+1"]
[Date "2023.08.08"]
[WhiteClock "0:01:01"]
[BlackClock "0:00:01"]
[Board "119"]

1. c4 {[%clk 0:02:59]}  c5 {[%clk 0:02:59]} 2. Nf3 {[%clk 0:02:58]}  Nf6 {[%clk 0:02:59]} 3. Nc3 {[%clk 0:02:58]}  d5 {[%clk 0:02:59]} 4. cxd5 {[%clk 0:02:57]}  Nxd5 {[%clk 0:03:00]} 5. g3 {[%clk 0:02:57]}  Nc6 {[%clk 0:02:57]} 6. Bg2 {[%clk 0:02:58]}  g6 {[%clk 0:02:57]} 7. O-O {[%clk 0:02:58]}  Bg7 {[%clk 0:02:56]} 8. d3 {[%clk 0:02:58]}  O-O {[%clk 0:02:48]} 9. Bd2 {[%clk 0:02:51]}  Nc7 {[%clk 0:02:44]} 10. Rc1 {[%clk 0:02:47]}  b6 {[%clk 0:02:44]} 11. a3 {[%clk 0:02:45]}  a5 {[%clk 0:02:29]} 12. Qa4 {[%clk 0:02:39]}  Bd7 {[%clk 0:02:27]} 13. Qh4 {[%clk 0:02:38]}  Nd4 {[%clk 0:02:04]} 14. Nxd4 {[%clk 0:02:32]}  cxd4 {[%clk 0:02:05]} 15. Ne4 {[%clk 0:02:27]}  Ne6 {[%clk 0:01:48]} 16. Bh6 {[%clk 0:02:23]}  Rc8 {[%clk 0:01:45]} 17. Bxg7 {[%clk 0:02:21]}  Kxg7 {[%clk 0:01:45]} 18. Ng5 {[%clk 0:02:16]}  Nxg5 {[%clk 0:01:39]} 19. Qxg5 {[%clk 0:02:17]}  f6 {[%clk 0:01:26]} 20. Qd5 {[%clk 0:02:16]}  Bg4 {[%clk 0:01:21]} 21. Qb7 {[%clk 0:01:58]}  Qd6 {[%clk 0:01:02]} 22. h3 {[%clk 0:01:36]}  Bd7 {[%clk 0:00:55]} 23. Kh2 {[%clk 0:01:27]}  h5 {[%clk 0:00:39]} 24. h4 {[%clk 0:01:24]}  Bg4 {[%clk 0:00:38]} 25. Rfe1 {[%clk 0:01:12]}  Rxc1 {[%clk 0:00:27]} 26. Rxc1 {[%clk 0:01:11]}  Bxe2 {[%clk 0:00:28]} 27. Re1 {[%clk 0:01:10]}  Rb8 {[%clk 0:00:06]} 28. Qa7 {[%clk 0:01:08]}  Bg4 {[%clk 0:00:03]} 29. Rxe7+ {[%clk 0:01:07]}  Kf8 {[%clk 0:00:03]} 30. Rf7+ {[%clk 0:01:06]}  Ke8 {[%clk 0:00:01]} 31. Bc6+ {[%clk 0:01:01]} 1-0


[Site "https://www.chess.com"]

[Event "Titled Tuesday Blitz August 08 Early 2023"]
[White "Llanos, Guillermo"]
[Black "Shyam, Sundar M."]
[WhiteFideId "100358"]
[BlackFideId "5019141"]
[WhiteElo "2397"]
[BlackElo "2718"]
[Result "0-1"]
[Round "1"]
[TimeControl "180+1"]
[Date "2023.08.08"]
[WhiteClock "0:00:13"]
[BlackClock "0:00:29"]
[Board "121"]

1. b3 {[%clk 0:02:58]}  d5 {[%clk 0:02:58]} 2. Bb2 {[%clk 0:02:58]}  Bg4 {[%clk 0:02:57]} 3. Nf3 {[%clk 0:02:56]}  Bxf3 {[%clk 0:02:55]} 4. exf3 {[%clk 0:02:56]}  Nd7 {[%clk 0:02:54]} 5. g3 {[%clk 0:02:56]}  c6 {[%clk 0:02:53]} 6. Bg2 {[%clk 0:02:57]}  Ngf6 {[%clk 0:02:54]} 7. O-O {[%clk 0:02:57]}  g6 {[%clk 0:02:53]} 8. f4 {[%clk 0:02:56]}  Bg7 {[%clk 0:02:53]} 9. d4 {[%clk 0:02:56]}  O-O {[%clk 0:02:53]} 10. c4 {[%clk 0:02:51]}  a5 {[%clk 0:02:52]} 11. Nc3 {[%clk 0:02:51]}  e6 {[%clk 0:02:51]} 12. Qd3 {[%clk 0:02:50]}  Re8 {[%clk 0:02:50]} 13. Rfe1 {[%clk 0:02:49]}  h5 {[%clk 0:02:47]} 14. h3 {[%clk 0:02:47]}  Bf8 {[%clk 0:02:39]} 15. c5 {[%clk 0:02:40]}  h4 {[%clk 0:02:35]} 16. g4 {[%clk 0:02:31]}  Qc7 {[%clk 0:02:17]} 17. Qe3 {[%clk 0:02:25]}  Nh7 {[%clk 0:02:09]} 18. g5 {[%clk 0:02:16]}  b6 {[%clk 0:01:56]} 19. Na4 {[%clk 0:02:07]}  bxc5 {[%clk 0:01:46]} 20. dxc5 {[%clk 0:02:06]}  Bg7 {[%clk 0:01:46]} 21. Bxg7 {[%clk 0:02:05]}  Kxg7 {[%clk 0:01:47]} 22. Qd4+ {[%clk 0:02:04]}  Kg8 {[%clk 0:01:44]} 23. Re3 {[%clk 0:01:57]}  e5 {[%clk 0:01:42]} 24. fxe5 {[%clk 0:01:56]}  Rxe5 {[%clk 0:01:41]} 25. Rxe5 {[%clk 0:01:47]}  Qxe5 {[%clk 0:01:38]} 26. Qxe5 {[%clk 0:01:47]}  Nxe5 {[%clk 0:01:39]} 27. f4 {[%clk 0:01:47]}  Nd7 {[%clk 0:01:38]} 28. Re1 {[%clk 0:01:44]}  Kf8 {[%clk 0:01:36]} 29. Bf3 {[%clk 0:01:44]}  Re8 {[%clk 0:01:25]} 30. Rxe8+ {[%clk 0:01:43]}  Kxe8 {[%clk 0:01:25]} 31. Kf2 {[%clk 0:01:35]}  Nhf8 {[%clk 0:01:26]} 32. Bxd5 {[%clk 0:01:21]}  cxd5 {[%clk 0:01:25]} 33. c6 {[%clk 0:01:21]}  Ne6 {[%clk 0:01:18]} 34. cxd7+ {[%clk 0:01:20]}  Kxd7 {[%clk 0:01:19]} 35. Ke3 {[%clk 0:01:20]}  Kd6 {[%clk 0:01:19]} 36. a3 {[%clk 0:01:18]}  d4+ {[%clk 0:01:09]} 37. Ke4 {[%clk 0:01:10]}  d3 {[%clk 0:01:07]} 38. b4 {[%clk 0:00:51]}  axb4 {[%clk 0:01:01]} 39. axb4 {[%clk 0:00:50]}  d2 {[%clk 0:00:56]} 40. Nb2 {[%clk 0:00:50]}  Kc6 {[%clk 0:00:56]} 41. Ke3 {[%clk 0:00:47]}  Kb5 {[%clk 0:00:55]} 42. Kxd2 {[%clk 0:00:43]}  Nxf4 {[%clk 0:00:55]} 43. Ke3 {[%clk 0:00:43]}  Nxh3 {[%clk 0:00:55]} 44. Nd3 {[%clk 0:00:41]}  Nxg5 {[%clk 0:00:55]} 45. Kf4 {[%clk 0:00:41]}  Ne6+ {[%clk 0:00:54]} 46. Kg4 {[%clk 0:00:39]}  g5 {[%clk 0:00:54]} 47. Ne5 {[%clk 0:00:39]}  f6 {[%clk 0:00:47]} 48. Nf3 {[%clk 0:00:33]}  Kxb4 {[%clk 0:00:46]} 49. Kf5 {[%clk 0:00:33]}  h3 {[%clk 0:00:34]} 50. Kxe6 {[%clk 0:00:26]}  g4 {[%clk 0:00:33]} 51. Ne1 {[%clk 0:00:20]}  h2 {[%clk 0:00:31]} 52. Nd3+ {[%clk 0:00:20]}  Ka3 {[%clk 0:00:29]} 53. Nf2 {[%clk 0:00:13]}  g3 {[%clk 0:00:29]} 0-1


[Site "https://www.chess.com"]

[Event "Titled Tuesday Blitz August 08 Early 2023"]
[White "Khachiyan, Melikset"]
[Black "Semenenko, Dmytry"]
[WhiteFideId "13300512"]
[BlackFideId "14118645"]
[WhiteElo "2716"]
[BlackElo "2394"]
[Result "0-1"]
[Round "1"]
[TimeControl "180+1"]
[Date "2023.08.08"]
[WhiteClock "0:01:07"]
[BlackClock "0:01:23"]
[Board "122"]

1. e4 {[%clk 0:02:59]}  Nf6 {[%clk 0:02:59]} 2. e5 {[%clk 0:02:59]}  Nd5 {[%clk 0:03:00]} 3. d4 {[%clk 0:02:55]}  d6 {[%clk 0:03:00]} 4. Nf3 {[%clk 0:02:55]}  Bg4 {[%clk 0:02:59]} 5. Bc4 {[%clk 0:02:47]}  e6 {[%clk 0:02:59]} 6. h3 {[%clk 0:02:46]}  Bxf3 {[%clk 0:02:54]} 7. Qxf3 {[%clk 0:02:47]}  dxe5 {[%clk 0:02:54]} 8. dxe5 {[%clk 0:02:46]}  Nc6 {[%clk 0:02:54]} 9. Bb5 {[%clk 0:02:43]}  Nb4 {[%clk 0:02:53]} 10. Na3 {[%clk 0:02:39]}  Qd5 {[%clk 0:02:47]} 11. Qxd5 {[%clk 0:02:38]}  Nxd5 {[%clk 0:02:44]} 12. Bxc6+ {[%clk 0:02:37]}  bxc6 {[%clk 0:02:44]} 13. Nc4 {[%clk 0:02:38]}  Bb4+ {[%clk 0:02:41]} 14. Ke2 {[%clk 0:02:35]}  Ke7 {[%clk 0:02:34]} 15. c3 {[%clk 0:02:34]}  Bc5 {[%clk 0:02:34]} 16. Be3 {[%clk 0:02:28]}  Nxe3 {[%clk 0:02:31]} 17. fxe3 {[%clk 0:02:29]}  a6 {[%clk 0:02:27]} 18. Rad1 {[%clk 0:02:26]}  Rhd8 {[%clk 0:02:25]} 19. e4 {[%clk 0:02:25]}  Rxd1 {[%clk 0:02:21]} 20. Rxd1 {[%clk 0:02:24]}  Rd8 {[%clk 0:02:22]} 21. Rxd8 {[%clk 0:02:24]}  Kxd8 {[%clk 0:02:22]} 22. Kd3 {[%clk 0:02:23]}  Kd7 {[%clk 0:02:21]} 23. b4 {[%clk 0:02:23]}  Bf2 {[%clk 0:02:21]} 24. a4 {[%clk 0:02:22]}  Bg3 {[%clk 0:02:20]} 25. Ke3 {[%clk 0:02:10]}  h5 {[%clk 0:02:14]} 26. Kd3 {[%clk 0:02:09]}  h4 {[%clk 0:02:12]} 27. a5 {[%clk 0:02:09]}  Bf4 {[%clk 0:02:07]} 28. Nb2 {[%clk 0:02:06]}  Bxe5 {[%clk 0:02:06]} 29. Na4 {[%clk 0:02:06]}  Bd6 {[%clk 0:02:04]} 30. Kd4 {[%clk 0:02:00]}  f6 {[%clk 0:02:00]} 31. Ke3 {[%clk 0:01:57]}  g5 {[%clk 0:01:58]} 32. Kd3 {[%clk 0:01:52]}  f5 {[%clk 0:01:58]} 33. e5 {[%clk 0:01:46]}  Bxe5 {[%clk 0:01:43]} 34. Nc5+ {[%clk 0:01:44]}  Kc8 {[%clk 0:01:35]} 35. Nxa6 {[%clk 0:01:45]}  Bd6 {[%clk 0:01:35]} 36. c4 {[%clk 0:01:38]}  Kb7 {[%clk 0:01:33]} 37. b5 {[%clk 0:01:37]}  g4 {[%clk 0:01:27]} 38. Ke2 {[%clk 0:01:24]}  cxb5 {[%clk 0:01:23]} 39. cxb5 {[%clk 0:01:07]}  c6 {[%clk 0:01:23]} 0-1


[Site "https://www.chess.com"]

[Event "Titled Tuesday Blitz August 08 Early 2023"]
[White "Donskov, Anatoly"]
[Black "Grieve, Harry"]
[WhiteFideId "24143413"]
[BlackFideId "426520"]
[WhiteElo "2386"]
[BlackElo "2711"]
[Result "1-0"]
[Round "1"]
[TimeControl "180+1"]
[Date "2023.08.08"]
[WhiteClock "0:00:05"]
[BlackClock "0:00:03"]
[Board "127"]

1. e4 {[%clk 0:02:58]}  a6 {[%clk 0:02:59]} 2. d4 {[%clk 0:02:57]}  c6 {[%clk 0:03:00]} 3. Bd3 {[%clk 0:02:57]}  d5 {[%clk 0:03:00]} 4. Nc3 {[%clk 0:02:55]}  dxe4 {[%clk 0:02:57]} 5. Bxe4 {[%clk 0:02:55]}  Nf6 {[%clk 0:02:58]} 6. Bf3 {[%clk 0:02:55]}  Bf5 {[%clk 0:02:57]} 7. Nge2 {[%clk 0:02:55]}  e6 {[%clk 0:02:57]} 8. O-O {[%clk 0:02:55]}  Nbd7 {[%clk 0:02:56]} 9. Bf4 {[%clk 0:02:54]}  Be7 {[%clk 0:02:54]} 10. Ng3 {[%clk 0:02:53]}  Bg6 {[%clk 0:02:54]} 11. Re1 {[%clk 0:02:51]}  O-O {[%clk 0:02:53]} 12. a3 {[%clk 0:02:44]}  Nd5 {[%clk 0:02:50]} 13. Bd2 {[%clk 0:02:43]}  Nxc3 {[%clk 0:02:49]} 14. Bxc3 {[%clk 0:02:43]}  Nf6 {[%clk 0:02:49]} 15. b3 {[%clk 0:02:42]}  a5 {[%clk 0:02:43]} 16. a4 {[%clk 0:02:26]}  Qc7 {[%clk 0:02:39]} 17. Bb2 {[%clk 0:02:20]}  Rfd8 {[%clk 0:02:37]} 18. Qe2 {[%clk 0:02:20]}  Nd5 {[%clk 0:02:36]} 19. Ne4 {[%clk 0:02:14]}  Bb4 {[%clk 0:02:28]} 20. Red1 {[%clk 0:02:13]}  Rd7 {[%clk 0:02:25]} 21. c4 {[%clk 0:01:52]}  Nf4 {[%clk 0:02:22]} 22. Qe3 {[%clk 0:01:51]}  Rad8 {[%clk 0:02:14]} 23. g3 {[%clk 0:01:51]}  Bxe4 {[%clk 0:02:15]} 24. Qxe4 {[%clk 0:01:46]}  Nh3+ {[%clk 0:02:10]} 25. Kg2 {[%clk 0:01:42]}  Ng5 {[%clk 0:02:11]} 26. Qe3 {[%clk 0:01:43]}  Nxf3 {[%clk 0:02:11]} 27. Qxf3 {[%clk 0:01:44]}  h6 {[%clk 0:02:07]} 28. Rd3 {[%clk 0:01:43]}  e5 {[%clk 0:02:00]} 29. Rad1 {[%clk 0:01:42]}  exd4 {[%clk 0:01:39]} 30. Rxd4 {[%clk 0:01:43]}  Rxd4 {[%clk 0:01:39]} 31. Rxd4 {[%clk 0:01:44]}  Rxd4 {[%clk 0:01:39]} 32. Bxd4 {[%clk 0:01:43]}  Qd7 {[%clk 0:01:40]} 33. Bb6 {[%clk 0:01:35]}  f6 {[%clk 0:01:08]} 34. h4 {[%clk 0:01:33]}  Qe6 {[%clk 0:00:55]} 35. h5 {[%clk 0:01:31]}  Kf7 {[%clk 0:00:54]} 36. Qd3 {[%clk 0:01:27]}  f5 {[%clk 0:00:54]} 37. Qd8 {[%clk 0:01:15]}  Qe4+ {[%clk 0:00:28]} 38. Kh2 {[%clk 0:01:15]}  Qf3 {[%clk 0:00:29]} 39. Qd7+ {[%clk 0:00:48]}  Be7 {[%clk 0:00:29]} 40. Bc5 {[%clk 0:00:33]}  Qxh5+ {[%clk 0:00:29]} 41. Kg2 {[%clk 0:00:34]}  Qg5 {[%clk 0:00:29]} 42. Bxe7 {[%clk 0:00:34]}  Qxe7 {[%clk 0:00:29]} 43. Qxf5+ {[%clk 0:00:33]}  Kg8 {[%clk 0:00:27]} 44. Qxa5 {[%clk 0:00:33]}  Qe4+ {[%clk 0:00:28]} 45. Kh2 {[%clk 0:00:30]}  Qf3 {[%clk 0:00:26]} 46. Qa8+ {[%clk 0:00:14]}  Kh7 {[%clk 0:00:26]} 47. Qxb7 {[%clk 0:00:14]}  Qxf2+ {[%clk 0:00:26]} 48. Kh3 {[%clk 0:00:15]}  Qf1+ {[%clk 0:00:26]} 49. Kg4 {[%clk 0:00:14]}  Qe2+ {[%clk 0:00:24]} 50. Kf4 {[%clk 0:00:14]}  Qf2+ {[%clk 0:00:22]} 51. Ke4 {[%clk 0:00:14]}  Qxg3 {[%clk 0:00:22]} 52. a5 {[%clk 0:00:11]}  c5 {[%clk 0:00:18]} 53. a6 {[%clk 0:00:09]}  h5 {[%clk 0:00:19]} 54. Kd5 {[%clk 0:00:08]}  h4 {[%clk 0:00:19]} 55. Kxc5 {[%clk 0:00:08]}  Qe3+ {[%clk 0:00:15]} 56. Kb4 {[%clk 0:00:07]}  Qe1+ {[%clk 0:00:15]} 57. Kb5 {[%clk 0:00:07]}  h3 {[%clk 0:00:12]} 58. a7 {[%clk 0:00:07]}  Qe5+ {[%clk 0:00:13]} 59. c5 {[%clk 0:00:06]}  Qe2+ {[%clk 0:00:14]} 60. Kb6 {[%clk 0:00:06]}  Qe6+ {[%clk 0:00:13]} 61. Ka5 {[%clk 0:00:06]}  h2 {[%clk 0:00:07]} 62. a8=Q {[%clk 0:00:06]}  Qe5 {[%clk 0:00:03]} 63. Qe4+ {[%clk 0:00:05]} 1-0


[Site "https://www.chess.com"]

[Event "Titled Tuesday Blitz August 08 Early 2023"]
[White "profedechess93"]
[Black "Luong Phuong Hanh"]
[BlackFideId "12401013"]
[WhiteElo "2702"]
[BlackElo "2379"]
[Result "0-1"]
[Round "1"]
[TimeControl "180+1"]
[Date "2023.08.08"]
[WhiteClock "0:00:00"]
[BlackClock "0:00:06"]
[Board "130"]

1. e4 {[%clk 0:02:58]}  c5 {[%clk 0:02:59]} 2. Nf3 {[%clk 0:02:56]}  e6 {[%clk 0:02:59]} 3. d4 {[%clk 0:02:55]}  cxd4 {[%clk 0:02:59]} 4. Nxd4 {[%clk 0:02:56]}  a6 {[%clk 0:03:00]} 5. Nc3 {[%clk 0:02:56]}  Qc7 {[%clk 0:02:59]} 6. Be2 {[%clk 0:02:56]}  b5 {[%clk 0:02:58]} 7. O-O {[%clk 0:02:56]}  Bb7 {[%clk 0:02:58]} 8. Bf3 {[%clk 0:02:56]}  d6 {[%clk 0:02:58]} 9. a4 {[%clk 0:02:52]}  b4 {[%clk 0:02:57]} 10. Na2 {[%clk 0:02:52]}  Nd7 {[%clk 0:02:51]} 11. Re1 {[%clk 0:02:49]}  Qa5 {[%clk 0:02:21]} 12. e5 {[%clk 0:02:37]}  d5 {[%clk 0:02:16]} 13. Bh5 {[%clk 0:02:31]}  g6 {[%clk 0:02:11]} 14. Bg4 {[%clk 0:02:29]}  Ne7 {[%clk 0:02:11]} 15. Bxe6 {[%clk 0:02:24]}  fxe6 {[%clk 0:02:11]} 16. Nxe6 {[%clk 0:02:24]}  Nc5 {[%clk 0:02:06]} 17. Nxc5 {[%clk 0:01:42]}  Qxc5 {[%clk 0:02:05]} 18. Be3 {[%clk 0:01:43]}  Qa5 {[%clk 0:02:01]} 19. e6 {[%clk 0:01:35]}  Bg7 {[%clk 0:01:59]} 20. Bd2 {[%clk 0:01:12]}  Nc6 {[%clk 0:01:37]} 21. Qg4 {[%clk 0:01:09]}  O-O {[%clk 0:01:35]} 22. e7 {[%clk 0:01:03]}  Rfe8 {[%clk 0:01:28]} 23. Nxb4 {[%clk 0:00:56]}  Nxe7 {[%clk 0:01:05]} 24. Qe6+ {[%clk 0:00:48]}  Kh8 {[%clk 0:01:04]} 25. Qd7 {[%clk 0:00:48]}  Qb6 {[%clk 0:00:22]} 26. a5 {[%clk 0:00:32]}  Qb5 {[%clk 0:00:20]} 27. Rxe7 {[%clk 0:00:29]}  Rxe7 {[%clk 0:00:20]} 28. Qxe7 {[%clk 0:00:28]}  Bxb2 {[%clk 0:00:21]} 29. Rb1 {[%clk 0:00:20]}  Re8 {[%clk 0:00:20]} 30. Qh4 {[%clk 0:00:14]}  Bg7 {[%clk 0:00:18]} 31. h3 {[%clk 0:00:13]}  Qxa5 {[%clk 0:00:17]} 32. Qg5 {[%clk 0:00:12]}  Qc5 {[%clk 0:00:12]} 33. Be3 {[%clk 0:00:08]}  Qc7 {[%clk 0:00:11]} 34. Nd3 {[%clk 0:00:05]}  Bc6 {[%clk 0:00:09]} 35. Nc5 {[%clk 0:00:04]}  Bb5 {[%clk 0:00:08]} 36. Nb3 {[%clk 0:00:03]}  Qxc2 {[%clk 0:00:07]} 37. Rc1 {[%clk 0:00:02]}  Qxb3 {[%clk 0:00:07]} 38. Rc7 {[%clk 0:00:03]}  Rg8 {[%clk 0:00:06]} 39. h4 {[%clk 0:00:02]}  Qd1+ {[%clk 0:00:05]} 40. Kh2 {[%clk 0:00:00]}  Qh5 {[%clk 0:00:06]} 0-1


[Site "https://www.chess.com"]

[Event "Titled Tuesday Blitz August 08 Early 2023"]
[White "Korchmar, Vasiliy"]
[Black "Nosacheva, Mariya"]
[WhiteFideId "24131750"]
[BlackFideId "34111422"]
[WhiteElo "2700"]
[BlackElo "2374"]
[Result "1-0"]
[Round "1"]
[TimeControl "180+1"]
[Date "2023.08.08"]
[WhiteClock "0:01:09"]
[BlackClock "0:01:26"]
[Board "134"]

1. e4 {[%clk 0:02:59]}  c5 {[%clk 0:02:56]} 2. d4 {[%clk 0:02:59]}  cxd4 {[%clk 0:02:56]} 3. Qxd4 {[%clk 0:03:00]}  Nc6 {[%clk 0:02:52]} 4. Qd3 {[%clk 0:03:00]}  g6 {[%clk 0:02:50]} 5. Nc3 {[%clk 0:02:59]}  Bg7 {[%clk 0:02:50]} 6. Nf3 {[%clk 0:02:59]}  d6 {[%clk 0:02:49]} 7. Be2 {[%clk 0:02:59]}  Nf6 {[%clk 0:02:49]} 8. O-O {[%clk 0:02:59]}  O-O {[%clk 0:02:50]} 9. Nd5 {[%clk 0:02:59]}  Nxd5 {[%clk 0:02:41]} 10. exd5 {[%clk 0:02:59]}  Bf5 {[%clk 0:02:41]} 11. Qd1 {[%clk 0:02:54]}  Nb4 {[%clk 0:02:37]} 12. c3 {[%clk 0:02:53]}  Nc2 {[%clk 0:02:23]} 13. g4 {[%clk 0:02:40]}  Nxa1 {[%clk 0:02:18]} 14. gxf5 {[%clk 0:02:40]}  gxf5 {[%clk 0:02:18]} 15. Be3 {[%clk 0:02:33]}  Qa5 {[%clk 0:02:17]} 16. Qxa1 {[%clk 0:02:27]}  Qxd5 {[%clk 0:02:16]} 17. Rd1 {[%clk 0:02:18]}  Qe4 {[%clk 0:02:11]} 18. Qc1 {[%clk 0:02:09]}  f4 {[%clk 0:02:05]} 19. Ng5 {[%clk 0:02:03]}  Qg6 {[%clk 0:02:03]} 20. Bxf4 {[%clk 0:02:01]}  h6 {[%clk 0:02:02]} 21. Bd3 {[%clk 0:02:00]}  f5 {[%clk 0:02:02]} 22. Kh1 {[%clk 0:01:48]}  hxg5 {[%clk 0:02:02]} 23. Bxg5 {[%clk 0:01:49]}  Qh5 {[%clk 0:01:57]} 24. Qe3 {[%clk 0:01:40]}  Qxd1+ {[%clk 0:01:55]} 25. Kg2 {[%clk 0:01:39]}  Qg4+ {[%clk 0:01:55]} 26. Kf1 {[%clk 0:01:39]}  f4 {[%clk 0:01:55]} 27. Qe4 {[%clk 0:01:16]}  Qxg5 {[%clk 0:01:52]} 28. Qh7+ {[%clk 0:01:16]}  Kf7 {[%clk 0:01:52]} 29. Bc4+ {[%clk 0:01:16]}  d5 {[%clk 0:01:49]} 30. h4 {[%clk 0:01:13]}  Qe5 {[%clk 0:01:42]} 31. Bd3 {[%clk 0:01:13]}  Qf6 {[%clk 0:01:36]} 32. Qh5+ {[%clk 0:01:10]}  Kg8 {[%clk 0:01:33]} 33. Bh7+ {[%clk 0:01:09]}  Kh8 {[%clk 0:01:26]} 34. Bg6+ {[%clk 0:01:09]} 1-0


[Site "https://www.chess.com"]